bitfinex/quotes_ETHUSD_20251111
["timestamp","ask_amount","ask_price","bid_price","bid_amount"]
[1762902216196,0.4572,3426.8,3426.7,2.91825955]
[1762902216396,0.9572,3426.8,3426.7,2.91825955]
[1762902217122,0.5,3426.6,3426.2,2.91868542]
[1762902217322,0.9552,3426.3,3426.2,2.91861518]
[1762902217818,0.5,3426.3,3426.2,3.39061518]
[1762902217987,0.5,3426.5,3426.4,2.91847098]
[1762902218191,0.5,3426.5,3426.2,2.91862713]
[1762902218520,0.5,3426.2,3425.8,0.693]
[1762902218720,0.5,3426.2,3425.8,3.61201282]
[1762902218910,0.5,3426.2,3425.9,2.918941]
[1762902219110,0.5,3426.2,3426.1,2.91877061]
[1762902219307,0.5,3426.2,3426.0,2.91883853]
[1762902219535,0.8849,3425.9,3425.6,2.91912597]
[1762902219735,0.6944,3425.2,3425.1,0.001]
[1762902219905,0.9552,3425.2,3425.1,0.001]
[1762902220110,1.4169,3425.2,3425.1,0.001]
[1762902220644,4.77005891,3425.2,3425.1,0.001]
[1762902220846,5.04239776,3425.2,3425.1,0.001]
[1762902221045,1.16116022,3425.2,3425.1,0.001]
[1762902221246,4.60877639,3425.2,3425.1,0.001]
[1762902222045,12.04048813,3425.2,3425.1,0.001]
[1762902222344,2.82297965,3425.2,3425.1,0.001]
[1762902222647,1.22758314,3425.2,3425.1,0.001]
[1762902223322,4.60882068,3425.2,3425.1,0.001]
[1762902223520,6.77477124,3425.2,3425.1,0.001]
[1762902223720,6.31681763,3425.2,3425.1,0.001]
[1762902224910,3.39728009,3425.2,3425.1,0.001]
[1762902225107,2.82302394,3425.2,3425.1,0.001]
[1762902225439,1.22758314,3425.2,3425.1,0.001]
[1762902225848,0.27238314,3425.2,3425.1,0.001]
[1762902226148,0.5,3425.2,3425.1,2.92062278]
[1762902226356,0.4617,3426.4,3425.1,1.73194093]
[1762902226523,0.5,3425.7,3425.1,1.1478]
[1762902226709,0.002,3426.8,3425.3,2.91937263]
[1762902226710,0.5,3425.4,3425.3,2.91937263]
[1762902227425,0.5,3425.6,3425.1,0.1815]
[1762902227646,0.5,3425.6,3425.2,2.91947314]
[1762902227951,0.5,3425.6,3425.5,2.91928185]
[1762902228149,0.45788055,3426.1,3425.7,2.91905793]
[1762902228150,0.5,3425.8,3425.7,2.91905793]
[1762902228316,0.5,3425.8,3425.7,3.39105793]
[1762902228511,0.5,3425.9,3425.8,2.91898133]
[1762902228744,0.5,3426.0,3425.9,2.918941]
[1762902228942,0.77184563,3426.0,3425.9,2.918941]
[1762902229337,0.77184563,3426.0,3425.7,2.91906169]
[1762902229543,0.5,3426.0,3425.7,2.91906169]
[1762902229738,0.5,3426.0,3425.3,14.9943]
[1762902229739,0.5,3426.0,3425.8,2.91896276]
[1762902230114,0.5268,3426.9,3425.9,0.9663]
[1762902230337,0.5,3426.2,3425.9,2.94810144]
[1762902230832,0.5,3426.2,3425.9,2.94809738]
[1762902231156,0.4552,3426.0,3425.3,14.5]
[1762902231318,0.341843,3426.2,3425.7,2.91904641]
[1762902231521,0.5,3425.8,3425.7,2.91904641]
[1762902231940,0.5,3425.8,3425.3,14.9943]
[1762902232147,1.1337408,3426.6,3425.1,0.001]
[1762902232148,0.4617,3425.7,3425.1,0.001]
[1762902232450,0.1931,3425.9,3425.3,2.91945231]
[1762902232451,0.5,3425.4,3425.3,2.91945231]
[1762902232658,0.5,3425.4,3425.3,17.41945231]
[1762902232836,1.1337408,3426.3,3425.5,2.9192395]
[1762902233036,0.5,3425.7,3425.6,2.91919663]
[1762902233354,0.5,3425.9,3425.8,2.91894444]
[1762902233846,0.5,3425.9,3425.5,2.91923326]
[1762902233847,0.4552,3425.9,3425.5,2.91923326]
[1762902234051,0.5,3425.6,3425.5,2.91923326]
[1762902234436,0.4552,3425.9,3425.8,2.91902621]
[1762902234437,0.5,3425.9,3425.8,2.91902621]
[1762902234654,0.5,3425.9,3425.8,2.91897648]
[1762902235675,0.6418,3425.9,3425.3,14.5]
[1762902235884,0.5,3425.6,3425.4,2.91935706]
[1762902236086,0.5,3425.6,3425.5,2.91928185]
[1762902237185,0.5,3425.6,3425.3,17.41943711]
[1762902237186,0.9961,3425.6,3425.3,17.41943711]
[1762902237378,0.4961,3425.6,3425.3,17.41943711]
[1762902237563,0.5,3425.4,3425.3,17.41943711]
[1762902237745,0.5,3425.4,3425.3,14.5]
[1762902237949,0.9961,3425.4,3425.3,14.5]
[1762902238366,0.5,3425.2,3425.1,0.001]
[1762902238571,0.6525,3425.2,3425.1,0.001]
[1762902239311,0.4661,3425.7,3425.1,0.001]
[1762902239454,0.5,3425.2,3425.1,2.92060091]
[1762902239654,0.1866,3425.9,3425.1,0.6168]
[1762902239902,0.5,3425.6,3425.1,1.1119]
[1762902240202,0.5,3425.6,3425.4,2.91934178]
[1762902240698,0.5,3425.6,3425.5,2.91928185]
[1762902240908,0.475,3426.4,3425.5,0.4951]
[1762902241215,0.5,3425.8,3425.7,2.91911142]
[1762902241768,0.9974,3425.8,3425.1,0.1656]
[1762902242049,0.5,3425.2,3425.1,0.001]
[1762902242164,0.5,3425.4,3425.1,0.1737]
[1762902242370,0.5,3425.4,3425.2,2.91950537]
[1762902242582,0.5,3425.4,3425.3,0.4951]
[1762902242791,0.77234549,3425.4,3425.3,3.41455231]
[1762902243266,0.1351,3425.9,3425.3,3.41448954]
[1762902243267,0.5,3425.6,3425.3,3.41448954]
[1762902243469,0.27246109,3425.5,3425.3,2.91938954]
[1762902244000,0.27246109,3425.5,3425.1,3.09332226]
[1762902244001,0.27246109,3425.5,3425.2,2.91950747]
[1762902244169,0.27246109,3425.5,3425.1,0.1737]
[1762902244372,0.27246109,3425.5,3425.2,2.91948072]
[1762902244701,0.27246109,3425.5,3425.1,3.09328322]
[1762902244910,0.4974,3425.2,3425.1,0.001]
[1762902245064,4.60597543,3425.2,3425.1,0.001]
[1762902245265,2.16143789,3425.2,3425.1,0.001]
[1762902245470,1.74500963,3425.2,3425.1,0.001]
[1762902246182,4.66454717,3425.2,3425.1,0.001]
[1762902246385,5.79828797,3425.2,3425.1,0.001]
[1762902247482,2.87875043,3425.2,3425.1,0.001]
[1762902247695,5.79828797,3425.2,3425.1,0.001]
[1762902247901,7.2998582,3425.2,3425.1,0.001]
[1762902248206,7.75786862,3425.2,3425.1,0.001]
[1762902248411,7.75786862,3425.2,3423.1,0.1971]
[1762902248412,0.1935,3424.9,3423.1,0.1971]
[1762902248571,0.5,3423.4,3423.1,0.0436]
[1762902248772,0.27311613,3423.3,3423.2,14.5]
[1762902249207,0.27311613,3423.3,3423.2,17.42124328]
[1762902249381,0.5,3423.4,3423.2,14.5]
[1762902249583,0.27291477,3423.3,3423.2,14.5]
[1762902249799,0.27291201,3423.3,3423.2,14.5]
[1762902250200,0.5,3423.4,3423.2,17.42124124]
[1762902250708,0.5,3423.4,3423.2,17.42123697]
[1762902251010,0.5,3423.3,3423.2,17.42123907]
[1762902251709,0.5,3423.3,3423.2,14.5]
[1762902252213,0.5,3423.2,3422.9,2.92149931]
[1762902252416,0.5,3422.9,3422.7,2.921655]
[1762902252589,0.5,3422.9,3422.8,17.42158466]
[1762902252788,0.5,3422.9,3422.8,17.91668466]
[1762902253336,0.5,3423.4,3423.0,2.92134138]
[1762902253508,0.5,3423.4,3422.8,17.59408647]
[1762902253713,0.5,3423.1,3422.8,14.9951]
[1762902253877,0.5,3423.3,3423.2,2.92116294]
[1762902255184,0.5,3423.3,3423.1,2.92128207]
[1762902255390,0.5,3423.3,3422.8,17.42155307]
[1762902255586,0.4974,3422.9,3422.8,14.5]
[1762902255778,0.5,3423.0,3422.9,2.92149931]
[1762902256186,0.5,3423.0,3422.9,3.41659931]
[1762902257013,0.5,3423.0,3422.8,14.5]
[1762902257236,0.5,3423.0,3422.9,2.92149931]
[1762902258206,0.475,3423.9,3423.3,2.9211167]
[1762902258405,0.5,3423.4,3423.3,3.41625794]
[1762902258605,0.5,3422.9,3422.8,14.5]
[1762902259126,0.5,3422.8,3422.7,2.92159885]
[1762902259494,0.5,3422.7,3422.5,2.92183077]
[1762902259689,0.5,3422.7,3422.3,2.92200359]
[1762902259897,0.5,3422.7,3422.2,0.4512]
[1762902260222,0.5,3422.7,3422.0,0.1883]
[1762902260223,0.5,3422.7,3422.6,14.5]
[1762902260733,0.9974,3422.7,3422.6,14.5]
[1762902260898,0.9974,3422.7,3421.4,0.1883]
[1762902260899,0.5,3422.0,3421.4,0.1883]
[1762902261237,0.5,3422.6,3422.5,2.92184075]
[1762902261735,0.1941,3423.2,3422.5,0.4951]
[1762902261931,2.97020658,3424.5,3422.4,0.001]
[1762902261932,0.5,3423.0,3422.6,2.92173305]
[1762902262133,0.1941,3423.5,3422.4,0.001]
[1762902262336,0.5,3423.0,3422.5,0.4512]
[1762902262523,0.5,3423.0,3422.9,2.92149931]
[1762902262729,0.002,3426.2,3422.9,2.23724993]
[1762902262730,0.475,3424.3,3422.9,2.23724993]
[1762902262912,0.5,3423.7,3423.6,2.92087796]
[1762902263099,0.475,3424.3,3423.4,0.4951]
[1762902263298,0.5,3423.9,3423.8,2.92073135]
[1762902264026,0.5,3424.1,3424.0,2.92051259]
[1762902264199,0.7716837,3424.1,3424.0,2.92051259]
[1762902264398,0.7716837,3424.1,3423.9,2.92061251]
[1762902264626,0.5,3424.1,3423.9,2.92061251]
[1762902264832,0.5,3424.1,3423.5,14.6883]
[1762902265015,0.9931,3423.6,3423.5,14.5]
[1762902265213,0.5,3423.6,3423.5,17.42098729]
[1762902266138,1.75399565,3423.6,3423.5,14.5]
[1762902266316,0.77189565,3423.6,3423.5,17.88198729]
[1762902266516,0.5,3423.9,3423.5,15.4423]
[1762902266702,0.27191402,3423.8,3423.6,2.92084693]
[1762902266902,0.5,3423.6,3423.5,17.42098729]
[1762902267131,0.5,3423.6,3423.5,14.5]
[1762902267410,0.5,3423.6,3423.1,3.10209484]
[1762902267411,0.5,3423.3,3423.1,0.1808]
[1762902267623,0.5,3423.4,3423.2,2.92124328]
[1762902267820,0.5,3423.5,3423.4,2.92107261]
[1762902268845,0.5,3423.3,3423.2,17.42118015]
[1762902269544,3.60747367,3423.9,3422.7,0.4813]
[1762902269545,0.1967,3423.9,3423.1,2.92131523]
[1762902269740,0.5,3422.9,3422.8,2.92158345]
[1762902269909,0.5,3422.9,3422.5,2.92184075]
[1762902270109,0.5,3422.9,3422.6,14.5]
[1762902270338,0.5,3422.9,3422.6,17.42171818]
[1762902270502,0.492,3422.7,3422.4,0.001]
[1762902270708,0.5,3422.5,3422.4,0.001]
[1762902270936,0.5,3422.5,3422.4,2.92292613]
[1762902271141,0.5,3422.5,3422.4,14.501]
[1762902271339,0.992,3422.5,3422.4,0.001]
[1762902272149,2.19490324,3422.5,3422.4,0.001]
[1762902272455,4.67637376,3422.5,3422.4,0.001]
[1762902272960,1.75453301,3422.5,3422.4,0.001]
[1762902275464,1.26443301,3422.5,3422.4,0.001]
[1762902276465,0.27243301,3422.5,3422.4,0.462]
[1762902276638,0.27243301,3422.5,3422.4,3.38392613]
[1762902276969,4.67692831,3422.5,3422.4,0.001]
[1762902277139,2.51495527,3422.5,3422.4,0.001]
[1762902277458,5.43679602,3422.5,3422.4,0.001]
[1762902277857,12.96138141,3422.5,3422.4,0.001]
[1762902280669,3.64869607,3422.5,3422.4,0.001]
[1762902281160,6.57053682,3422.5,3422.4,0.001]
[1762902282277,3.15859607,3422.5,3422.4,0.001]
[1762902282665,0.77298756,3422.5,3422.4,3.38392613]
[1762902282865,0.27298756,3422.5,3422.4,3.86522613]
[1762902283480,0.77298756,3422.5,3422.4,0.001]
[1762902283685,0.77298756,3422.5,3422.4,3.38392613]
[1762902283867,0.27298756,3422.5,3422.4,3.38392613]
[1762902284276,0.27298756,3422.5,3422.4,3.86522613]
[1762902284656,0.27298756,3422.5,3422.4,4.56352827]
[1762902285052,0.27298756,3422.5,3422.4,4.96903227]
[1762902285283,0.002,3422.8,3422.7,2.92167002]
[1762902285484,0.27484938,3422.8,3422.7,3.41188672]
[1762902285686,0.27484938,3422.8,3422.7,18.39318672]
[1762902285687,0.002,3422.8,3422.7,18.39318672]
[1762902285897,0.002,3422.8,3422.7,20.92728786]
[1762902286363,0.002,3422.8,3422.7,21.33279186]
[1762902287671,0.002,3422.8,3422.7,18.76947402]
[1762902287867,0.002,3422.8,3422.7,19.46647402]
[1762902288329,0.002,3422.8,3422.7,14.5]
[1762902288499,0.77481559,3422.8,3422.7,17.42167002]
[1762902288683,0.77481559,3422.8,3422.7,17.88267002]
[1762902290285,0.27481559,3422.8,3422.7,20.44452021]
[1762902290585,0.002,3422.8,3422.7,20.85002421]
[1762902290984,0.002,3422.8,3422.7,21.98376501]
[1762902292383,0.002,3422.8,3422.7,18.76947402]
[1762902293080,0.002,3422.8,3422.7,18.28817402]
[1762902293281,0.002,3422.8,3422.7,17.88267002]
[1762902293483,0.002,3422.8,3422.7,17.42167002]
[1762902293919,0.002,3422.8,3422.7,17.88267002]
[1762902294116,0.002,3422.8,3422.7,17.42167002]
[1762902295615,0.994,3422.8,3422.7,17.42167002]
[1762902295815,0.994,3422.8,3422.7,14.5]
[1762902296018,1.26618115,3422.8,3422.7,14.5]
[1762902296227,0.77418115,3422.8,3422.7,17.42167002]
[1762902296750,0.27418115,3422.8,3422.7,17.42167002]
[1762902297065,1.24068115,3422.8,3422.7,14.5]
[1762902298318,0.5,3422.7,3422.4,0.001]
[1762902298521,0.5,3422.5,3422.4,2.92292613]
[1762902298817,0.5,3422.5,3422.4,17.42292613]
[1762902299656,0.502,3422.8,3422.7,2.92167002]
[1762902299862,0.77432031,3422.8,3422.7,2.92167002]
[1762902300348,0.77432031,3422.8,3422.6,2.92173642]
[1762902300549,0.9744,3422.5,3422.4,0.001]
[1762902300719,1.14764203,3422.5,3422.4,0.001]
[1762902301060,1.9036004,3422.5,3422.4,0.001]
[1762902302767,4.82544115,3422.5,3422.4,0.001]
[1762902303279,1.9036004,3422.5,3422.4,0.001]
[1762902303784,4.82544115,3422.5,3422.4,0.001]
[1762902303990,1.9036004,3422.5,3422.4,0.001]
[1762902304289,4.82544115,3422.5,3422.4,0.001]
[1762902305294,5.95918195,3422.5,3422.4,0.001]
[1762902305648,6.36742031,3422.5,3422.4,0.001]
[1762902305944,5.95918195,3422.5,3422.4,0.001]
[1762902306259,1.4199004,3422.5,3422.4,0.001]
[1762902306581,1.24665837,3422.5,3422.4,0.001]
[1762902306756,1.73035837,3422.5,3422.4,0.001]
[1762902306957,4.65219912,3422.5,3422.4,0.001]
[1762902309085,1.73035837,3422.5,3422.4,0.001]
[1762902309584,1.24665837,3422.5,3422.4,0.001]
[1762902310814,0.27225837,3422.5,3422.4,0.001]
[1762902311014,0.77225837,3422.5,3422.4,0.001]
[1762902311828,0.77225837,3422.5,3422.4,3.41352613]
[1762902312300,0.77199399,3422.5,3422.4,3.41352613]
[1762902313081,0.77199399,3422.5,3422.4,3.89672613]
[1762902313082,0.27199399,3422.5,3422.4,3.89672613]
[1762902313296,0.27199904,3422.5,3422.4,0.001]
[1762902313495,1.24639904,3422.5,3422.4,0.001]
[1762902315236,0.77199904,3422.5,3422.4,3.41352613]
[1762902315525,0.77199904,3422.5,3422.4,3.89672613]
[1762902315844,0.002,3422.8,3422.7,2.92167002]
[1762902316145,0.27404093,3422.8,3422.7,3.41227002]
[1762902316996,0.27404093,3422.8,3422.7,4.96369371]
[1762902316997,0.002,3422.8,3422.7,4.96369371]
[1762902317200,0.002,3422.8,3422.7,4.93447701]
[1762902317395,0.002,3422.8,3422.7,6.76221781]
[1762902319452,0.002,3423.2,3423.1,3.32683262]
[1762902319744,0.002,3423.2,3423.1,5.35940841]
[1762902319942,0.002,3423.2,3423.1,5.84260841]
[1762902321730,0.5,3424.6,3424.5,2.92012654]
[1762902321902,0.77216021,3424.6,3424.5,2.92012654]
[1762902322810,0.77216021,3424.6,3424.2,0.1826]
[1762902322811,1.24656021,3424.6,3424.4,2.92021709]
[1762902323017,0.9744,3424.6,3424.4,2.92021709]
[1762902323505,0.9744,3424.6,3424.2,0.1826]
[1762902323701,0.9744,3424.6,3423.7,0.405504]
[1762902323702,0.9744,3424.6,3424.0,0.1826]
[1762902323928,0.9744,3424.6,3424.3,2.92027928]
[1762902324243,0.9744,3424.6,3424.0,0.1826]
[1762902324406,0.9744,3424.6,3424.3,2.92025292]
[1762902325149,0.9744,3424.6,3424.0,0.1826]
[1762902325336,0.9744,3424.6,3424.5,2.92013432]
[1762902325527,0.5,3424.8,3424.6,2.92000512]
[1762902325726,0.5,3424.8,3424.6,2.92001274]
[1762902325928,0.502,3425.2,3424.7,0.9511]
[1762902326132,0.502,3425.2,3424.7,3.39369286]
[1762902326348,0.502,3425.2,3425.0,2.91970517]
[1762902326524,0.002,3425.2,3425.1,2.91962278]
[1762902326727,0.002,3425.2,3425.1,3.44642278]
[1762902328345,0.471,3425.2,3424.6,0.694]
[1762902328567,0.5,3425.0,3424.9,2.91979327]
[1762902328745,0.5,3425.0,3424.6,3.61404797]
[1762902328949,0.5,3425.0,3424.8,2.91982557]
[1762902329259,0.5,3425.0,3424.9,2.91979327]
[1762902329653,0.502,3425.2,3425.0,2.91965634]
[1762902330057,0.502,3425.2,3424.8,2.91987853]
[1762902330360,0.502,3425.2,3425.0,2.91968321]
[1762902330761,0.502,3425.2,3424.9,2.91979327]
[1762902330939,0.502,3425.2,3424.6,1.0753548]
[1762902331262,0.502,3425.2,3424.6,0.694]
[1762902331465,0.502,3425.2,3424.8,2.91983802]
[1762902331773,0.502,3425.2,3424.9,2.91977722]
[1762902331969,0.502,3425.2,3424.8,2.91982626]
[1762902332128,0.502,3425.2,3424.7,2.91991093]
[1762902332330,0.502,3425.2,3424.9,2.91974301]
[1762902332743,0.502,3425.2,3425.1,0.4738]
[1762902332933,0.002,3425.2,3425.1,3.87072278]
[1762902334288,0.002,3425.2,3425.1,4.27622678]
[1762902334580,0.002,3425.2,3425.1,4.305423]
[1762902334741,0.002,3425.2,3425.1,4.27622678]
[1762902334936,0.002,3425.2,3425.1,5.74409241]
[1762902335868,0.002,3425.2,3425.1,5.26679241]
[1762902336377,0.002,3425.2,3425.1,5.74409241]
[1762902336541,0.002,3425.2,3425.1,3.39342278]
[1762902338274,0.002,3425.2,3425.1,8.175423]
[1762902338458,0.002,3425.2,3425.1,8.14622678]
[1762902338645,0.002,3425.9,3425.8,3.32453021]
[1762902338846,0.002,3425.9,3425.8,4.51952047]
[1762902339047,0.002,3425.9,3425.8,5.71149413]
[1762902343688,0.002,3425.9,3425.8,5.23419413]
[1762902343991,0.5,3425.7,3424.6,4.3473]
[1762902344288,0.5,3425.5,3424.7,0.692]
[1762902344486,0.5,3425.5,3425.1,2.91954251]
[1762902344653,0.0615,3425.9,3425.5,2.91926729]
[1762902344853,0.5,3425.7,3425.4,2.91932172]
[1762902345250,0.9862,3425.7,3425.4,2.91932172]
[1762902345887,0.002,3425.9,3425.8,2.91902621]
[1762902346095,0.002,3425.9,3425.5,2.91927044]
[1762902346258,0.1857,3425.9,3425.6,2.91911947]
[1762902346453,0.27116705,3425.8,3425.6,2.91911947]
[1762902346654,0.27116705,3425.8,3425.7,2.91911142]
[1762902347380,0.74016705,3425.8,3425.6,2.91916014]
[1762902347583,0.27116705,3425.7,3425.6,2.91916014]
[1762902347911,1.31686705,3425.7,3425.1,0.692]
[1762902348111,0.27167547,3425.6,3425.2,0.405504]
[1762902348310,0.5,3425.7,3425.6,2.91919663]
[1762902348511,0.5,3425.7,3425.1,0.692]
[1762902348512,0.27167963,3425.7,3425.5,2.91926258]
[1762902348712,0.6857,3425.9,3425.8,2.91902621]
[1762902348929,0.95737856,3425.9,3425.8,17.41902621]
[1762902349133,0.27367856,3425.9,3425.8,17.41902621]
[1762902350032,0.27367856,3425.9,3425.8,14.5]
[1762902350319,1.78837856,3425.9,3425.8,14.5]
[1762902351186,0.74267856,3425.9,3425.8,14.5]
[1762902352910,0.80217856,3425.9,3425.8,14.5]
[1762902353123,1.28837856,3425.9,3425.8,14.5]
[1762902353301,1.78837856,3425.9,3425.8,14.5]
[1762902356032,0.77367856,3425.9,3425.8,17.41902621]
[1762902356236,0.27367856,3425.9,3425.8,14.5]
[1762902356653,1.27397856,3425.9,3425.8,14.5]
[1762902356951,1.27397856,3425.9,3425.0,2.91967094]
[1762902357152,0.4651,3425.1,3425.0,2.91968621]
[1762902357361,0.73677856,3425.1,3425.0,14.5]
[1762902357501,0.73677856,3425.1,3425.0,17.41970802]
[1762902358398,0.5,3424.9,3423.7,1.1337408]
[1762902358601,0.5,3424.9,3423.5,0.4898]
[1762902358602,0.44199642,3424.8,3423.5,0.4898]
[1762902358839,0.44199642,3424.8,3424.2,2.92031401]
[1762902358840,0.5,3424.4,3424.2,2.92031401]
[1762902359012,0.27167856,3424.3,3423.6,14.9898]
[1762902359212,0.27167856,3424.2,3423.6,17.91063751]
[1762902359413,0.9664,3424.6,3423.6,14.9898]
[1762902359741,0.27226564,3424.5,3424.3,2.92028948]
[1762902359905,0.27226564,3424.4,3423.7,3.04097497]
[1762902360238,0.27226564,3424.3,3423.7,2.55117497]
[1762902360439,0.1961,3425.1,3423.9,0.405504]
[1762902360639,0.27223136,3425.0,3424.7,2.91989546]
[1762902360941,0.27223136,3424.9,3424.6,2.91999313]
[1762902361154,0.27223136,3424.8,3424.7,17.41996379]
[1762902361446,3.39924276,3424.5,3423.2,0.4898]
[1762902361647,0.1801,3424.3,3423.4,2.92107261]
[1762902361807,0.1801,3424.3,3423.1,3.77022666]
[1762902361808,0.4762,3423.5,3423.1,0.001]
[1762902362011,0.1747,3423.2,3423.1,0.001]
[1762902362662,1.1411,3423.2,3423.1,0.001]
[1762902363350,1.41245874,3423.2,3423.1,0.001]
[1762902363549,10.7985927,3423.2,3423.1,0.001]
[1762902363761,11.9323335,3423.2,3423.1,0.001]
[1762902366579,12.3906337,3423.2,3423.1,0.001]
[1762902368570,11.9323335,3423.2,3423.1,0.001]
[1762902369433,3.39459931,3422.9,3422.7,0.001]
[1762902369634,8.38814435,3422.8,3422.7,0.001]
[1762902369840,11.77612901,3422.8,3422.7,0.001]
[1762902371937,8.85454435,3422.8,3422.7,0.001]
[1762902372177,8.58318561,3422.8,3422.7,0.001]
[1762902372364,9.92919533,3422.8,3422.7,0.001]
[1762902372875,2.49010972,3422.8,3422.7,0.001]
[1762902373167,1.1441,3422.8,3422.7,0.001]
[1762902373993,4.06568466,3422.8,3422.7,0.001]
[1762902374138,1.8114408,3422.8,3422.7,0.001]
[1762902374339,0.5,3422.8,3422.7,0.001]
[1762902374568,0.183,3423.5,3422.7,3.38157002]
[1762902374745,0.5,3423.1,3422.8,3.29197934]
[1762902374939,0.5,3423.1,3423.0,2.92136259]
[1762902375146,0.5,3423.4,3423.3,2.92114924]
[1762902375440,0.5,3423.4,3423.3,17.42114924]
[1762902375789,0.4791,3423.4,3423.3,14.5]
[1762902375989,1.4455,3423.4,3423.3,14.5]
[1762902376146,0.5,3423.0,3422.9,2.92142893]
[1762902376547,0.5,3423.0,3422.9,14.9589]
[1762902376858,0.5,3423.0,3422.9,17.88039931]
[1762902377061,0.5,3423.0,3422.9,14.9589]
[1762902377243,0.5,3423.0,3422.9,17.88039931]
[1762902379589,0.5,3423.0,3422.9,14.5]
[1762902379793,0.9791,3423.0,3422.9,14.5]
[1762902380171,0.9791,3423.0,3422.9,17.42149931]
[1762902380397,0.5,3423.0,3422.9,14.5]
[1762902380993,0.5,3423.0,3422.9,17.42149931]
[1762902381189,0.5,3423.0,3422.9,14.5]
[1762902381503,0.5,3422.9,3422.8,2.92155113]
[1762902381908,0.5,3422.9,3422.8,3.38045113]
[1762902382512,6.3952871,3424.7,3423.7,2.92079637]
[1762902382810,0.5,3423.7,3423.6,2.92084372]
[1762902383911,0.5,3423.8,3423.6,0.4589]
[1762902384078,0.92460719,3424.4,3423.4,14.5]
[1762902384079,2.92041804,3424.2,3423.4,14.5]
[1762902384405,0.5,3423.5,3423.4,17.42104734]
[1762902384810,0.5,3423.5,3423.4,17.87994734]
[1762902385010,0.45820719,3424.4,3423.4,18.36974734]
[1762902385219,0.5,3423.8,3423.7,2.92081666]
[1762902385579,0.5,3423.8,3423.7,3.37971666]
[1762902386186,0.45820719,3424.4,3423.7,0.9524]
[1762902386386,0.77099369,3424.3,3424.2,2.92035642]
[1762902386712,0.77099369,3424.3,3424.1,2.92040795]
[1762902386884,0.27099369,3424.2,3424.1,2.92047545]
[1762902387285,0.27099369,3424.2,3424.1,3.38237545]
[1762902387509,0.27099369,3424.2,3424.1,3.56697545]
[1762902387714,0.27099369,3424.2,3424.1,18.06697545]
[1762902388584,0.27099369,3424.2,3424.1,18.56047545]
[1762902388915,0.002,3424.4,3424.3,2.92030487]
[1762902389118,0.27345626,3424.4,3424.3,3.38220487]
[1762902389297,0.27345626,3424.4,3424.3,3.87570487]
[1762902390216,0.002,3424.4,3424.3,3.87570487]
[1762902390402,0.002,3424.4,3424.3,6.64701771]
[1762902392626,0.002,3424.4,3424.3,18.78120887]
[1762902395440,0.002,3424.4,3424.3,19.91494967]
[1762902395628,0.002,3425.9,3425.8,2.91902621]
[1762902395802,0.002,3425.9,3425.8,3.38092621]
[1762902396318,0.002,3425.9,3425.8,17.88092621]
[1762902397248,0.502,3425.9,3425.8,14.5]
[1762902397574,1.6623,3425.9,3425.8,14.5]
[1762902397776,0.5,3425.6,3425.3,2.91944627]
[1762902398048,0.5,3425.6,3425.1,0.405504]
[1762902398232,0.5,3425.6,3425.4,14.5]
[1762902398747,0.5,3425.6,3425.5,2.91928185]
[1762902399358,0.002,3425.9,3425.7,2.9190948]
[1762902399652,0.002,3425.9,3425.6,2.91916679]
[1762902399803,0.002,3425.9,3425.5,0.4619]
[1762902400009,0.002,3425.9,3425.8,2.91902621]
[1762902400606,0.002,3425.9,3425.5,1.49619]
[1762902400939,0.002,3425.9,3425.7,2.91909953]
[1762902401144,0.002,3425.9,3425.8,2.91902621]
[1762902401364,0.002,3425.9,3425.8,3.90361647]
[1762902401512,0.002,3425.9,3425.8,4.7063191]
[1762902403543,0.002,3425.9,3425.8,2.91902621]
[1762902403901,0.9868,3425.9,3425.5,4.41545355]
[1762902404038,0.9868,3425.9,3425.8,2.91902621]
[1762902404217,0.9868,3425.9,3425.8,14.5]
[1762902405110,0.502,3425.9,3425.8,17.41902621]
[1762902405420,0.002,3425.9,3425.8,17.41902621]
[1762902406133,0.002,3425.9,3425.8,20.40824044]
[1762902406517,0.002,3425.9,3425.8,17.88092621]
[1762902407311,0.002,3425.9,3425.8,18.37442621]
[1762902407515,0.002,3425.9,3425.8,17.41902621]
[1762902407746,0.002,3425.9,3425.8,17.88092621]
[1762902408116,0.002,3425.9,3425.8,3.38092621]
[1762902408445,0.002,3425.9,3425.8,3.87442621]
[1762902408614,0.002,3425.9,3425.8,18.37442621]
[1762902409560,0.002,3425.9,3425.8,17.88092621]
[1762902411930,0.002,3425.9,3425.8,20.57258044]
[1762902412454,0.002,3425.9,3425.8,20.07908044]
[1762902412656,0.002,3425.9,3425.8,17.88092621]
[1762902413872,0.002,3425.9,3425.8,18.37442621]
[1762902414168,0.002,3425.9,3425.8,19.46693021]
[1762902415969,0.002,3425.9,3425.8,20.60067101]
[1762902420157,1e-08,3426.2,3426.1,3.99707461]
[1762902420356,1e-08,3426.2,3426.1,7.79574482]
[1762902421100,1e-08,3426.2,3426.1,7.29964482]
[1762902421305,1e-08,3426.2,3426.1,4.68407461]
[1762902421664,1e-08,3426.2,3426.1,8.35987461]
[1762902421867,1e-08,3426.2,3426.1,8.85597461]
[1762902422202,1e-08,3426.2,3426.1,7.26737061]
[1762902423503,1e-08,3426.2,3426.1,6.78877061]
[1762902424397,0.73077966,3426.2,3426.1,6.78877061]
[1762902424600,1.70627966,3426.2,3426.1,3.87]
[1762902424800,0.5,3426.1,3425.9,2.91888751]
[1762902425002,0.4582,3425.9,3425.8,14.5]
[1762902425302,0.92417965,3425.9,3425.8,17.41902621]